bitfinex/quotes_BTCUSD_20250620
["timestamp","ask_amount","ask_price","bid_price","bid_amount"]
[1750422826920,0.35129651,106040.0,106030.0,0.26795151]
[1750422827353,0.54933489,106040.0,106030.0,0.26795151]
[1750422827558,0.35129651,106040.0,106030.0,0.25235151]
[1750422827762,0.36072691,106040.0,106030.0,0.25235151]
[1750422827998,0.55876529,106040.0,106030.0,0.25235151]
[1750422828337,0.54933551,106040.0,106030.0,0.23349]
[1750422828545,0.54933551,106040.0,106030.0,0.21839]
[1750422828979,0.63517532,106040.0,106030.0,0.00147108]
[1750422829197,0.64841479,106040.0,106030.0,0.00147108]
[1750422829390,0.64841479,106040.0,106030.0,0.19952823]
[1750422829630,0.63211479,106040.0,106030.0,0.19952823]
[1750422829851,0.61631479,106040.0,106030.0,0.19952823]
[1750422830511,0.61631479,106040.0,106030.0,0.20895943]
[1750422830735,0.62574492,106040.0,106030.0,0.21839045]
[1750422831169,0.62574492,106040.0,106030.0,0.22782138]
[1750422831356,0.62574492,106040.0,106030.0,0.21839045]
[1750422832324,0.63504535,106040.0,106030.0,0.21839045]
[1750422832760,0.62574492,106040.0,106030.0,0.21839045]
[1750422833721,0.53047507,106040.0,106030.0,0.21839045]
[1750422834597,0.53047454,106040.0,106030.0,0.22782129]
[1750422834803,0.53047454,106040.0,106030.0,0.23725142]
[1750422834804,0.35129669,106040.0,106030.0,0.23725142]
[1750422835029,0.34186594,106040.0,106030.0,0.25225142]
[1750422835262,0.36072611,106040.0,106030.0,0.26885142]
[1750422835477,0.87988456,106050.0,106040.0,0.2495982]
[1750422835735,0.69129428,106050.0,106040.0,0.2495982]
[1750422835964,0.34,106050.0,106040.0,0.2495982]
[1750422836168,0.21685782,106060.0,106050.0,0.2297197]
[1750422836352,0.64721907,106060.0,106050.0,0.23914894]
[1750422836582,0.61893375,106060.0,106040.0,0.23946789]
[1750422836803,0.00942942,106050.0,106040.0,0.25832789]
[1750422837046,0.01242924,106050.0,106040.0,0.26775749]
[1750422837266,0.02185857,106050.0,106040.0,0.26775749]
[1750422837485,0.34486504,106050.0,106040.0,0.26775749]
[1750422837703,0.33243553,106050.0,106040.0,0.26775749]
[1750422838601,0.33343545,106050.0,106040.0,0.26775749]
[1750422838807,0.34286451,106050.0,106040.0,0.26775749]
[1750422839102,0.35229375,106050.0,106040.0,0.26775749]
[1750422839380,0.35229375,106050.0,106040.0,0.25832789]
[1750422839381,0.36172308,106050.0,106040.0,0.25832789]
[1750422839593,0.35229375,106050.0,106040.0,0.25832789]
[1750422840468,0.36172308,106050.0,106040.0,0.25832789]
[1750422841140,0.001,106050.0,106040.0,0.75285823]
[1750422841280,0.004,106050.0,106040.0,0.4864374]
[1750422842208,0.32300647,106060.0,106040.0,0.4864374]
[1750422842432,0.52858695,106080.0,106060.0,0.23812876]
[1750422842657,0.87044666,106080.0,106070.0,0.20740973]
[1750422842866,0.87987288,106080.0,106070.0,0.20740973]
[1750422843737,0.87987288,106080.0,106070.0,0.19798245]
[1750422843954,0.87053545,106080.0,106070.0,0.21683755]
[1750422844179,1.19354192,106080.0,106070.0,0.23569222]
[1750422844466,0.6819977,106080.0,106070.0,0.2356916]
[1750422844675,0.6819977,106080.0,106070.0,0.2667916]
[1750422845123,0.70085085,106080.0,106070.0,0.2506916]
[1750422845372,1.03828407,106080.0,106070.0,0.2506916]
[1750422845803,1.03328407,106080.0,106070.0,0.2506916]
[1750422846031,1.02385732,106080.0,106070.0,0.2506916]
[1750422846263,1.02685732,106080.0,106070.0,0.2506916]
[1750422846489,1.03628407,106080.0,106070.0,0.2506916]
[1750422846924,1.31066527,106080.0,106070.0,0.2168372]
[1750422847143,1.30791212,106080.0,106070.0,0.19798245]
[1750422847355,1.29181212,106080.0,106070.0,0.20741009]
[1750422847575,1.29481212,106080.0,106070.0,0.21683764]
[1750422848479,1.29481212,106080.0,106070.0,0.2262651]
[1750422848692,1.29481212,106080.0,106070.0,0.23569248]
[1750422848913,1.19954227,106080.0,106070.0,0.23569248]
[1750422849327,1.19654227,106080.0,106070.0,0.23569248]
[1750422849564,1.01743101,106080.0,106070.0,0.23569142]
[1750422849780,1.01743101,106080.0,106070.0,0.25189142]
[1750422850321,0.69442454,106080.0,106070.0,0.25189142]
[1750422850879,1.02685776,106080.0,106070.0,0.25189142]
[1750422851321,1.21639471,106080.0,106070.0,0.24246431]
[1750422851578,0.69542454,106080.0,106070.0,0.26829142]
[1750422851787,0.68599788,106080.0,106070.0,0.26829142]
[1750422852250,0.35356501,106080.0,106070.0,0.26829142]
[1750422852465,0.68599788,106080.0,106070.0,0.26829142]
[1750422853135,0.69542454,106080.0,106070.0,0.26829142]
[1750422853368,0.69542446,106080.0,106070.0,0.26829142]
[1750422853578,0.70485112,106080.0,106070.0,0.26829142]
[1750422854463,0.36299141,106080.0,106070.0,0.26829142]
[1750422854695,0.69542446,106080.0,106070.0,0.26829142]
[1750422854915,0.32714526,106080.0,106070.0,0.26829142]
[1750422855368,0.00413879,106080.0,106070.0,0.36357035]
[1750422856953,0.01356483,106080.0,106070.0,0.36357035]
[1750422857173,0.32714526,106080.0,106070.0,0.36357035]
[1750422857619,0.3365713,106080.0,106070.0,0.36357035]
[1750422858067,0.36485076,106080.0,106070.0,0.36357035]
[1750422858300,0.00413879,106080.0,106070.0,0.25756422]
[1750422858546,0.33657139,106080.0,106070.0,0.25756422]
[1750422859207,0.00413879,106080.0,106070.0,0.35284315]
[1750422865691,0.32714526,106080.0,106070.0,0.35284315]
[1750422868218,0.01356501,106080.0,106070.0,0.35284315]
[1750422868427,0.33657139,106080.0,106070.0,0.35284315]
[1750422869073,0.32714526,106080.0,106070.0,0.35284315]
[1750422869711,0.00413879,106080.0,106070.0,0.35284315]
[1750422869923,0.32714526,106080.0,106070.0,0.35284315]
[1750422870738,0.33657139,106080.0,106070.0,0.35284315]
[1750422872133,0.00413879,106080.0,106070.0,0.35284315]
[1750422872350,0.32714526,106080.0,106070.0,0.35284315]
[1750422872817,0.00413879,106080.0,106070.0,0.35284315]
[1750422873698,0.00413879,106080.0,106070.0,0.40942879]
[1750422874139,0.00413879,106080.0,106070.0,0.43774379]
[1750422883472,0.00413879,106080.0,106070.0,0.70416462]
[1750422883690,0.00413879,106080.0,106070.0,0.38115815]
[1750422886532,0.00413879,106080.0,106070.0,0.45650043]
[1750422886765,0.00413879,106080.0,106070.0,0.38115815]
[1750422889476,0.00413879,106080.0,106070.0,0.45650043]
[1750422889689,0.00413879,106080.0,106070.0,0.38115815]
[1750422891372,0.32714526,106080.0,106070.0,0.34985815]
[1750422891783,0.00413879,106080.0,106070.0,0.36565815]
[1750422892000,0.00413879,106080.0,106070.0,0.38225815]
[1750422892953,0.00413879,106080.0,106070.0,0.70526462]
[1750422893180,0.00413879,106080.0,106070.0,0.45760043]
[1750422906964,0.00013879,106080.0,106070.0,0.45760043]
[1750422907886,0.00113879,106080.0,106070.0,0.45760043]
[1750422909143,0.00113879,106080.0,106070.0,0.7806069]
[1750422911375,0.00113879,106080.0,106070.0,0.45760043]
[1750422913226,0.00113879,106080.0,106070.0,0.79514775]
[1750422913434,0.00113879,106080.0,106070.0,0.81398332]
[1750422914300,0.00013879,106080.0,106070.0,0.81398332]
[1750422914770,0.00013879,106080.0,106070.0,0.81698332]
[1750422914993,0.00013879,106080.0,106070.0,0.81598332]
[1750422915207,0.00013879,106080.0,106070.0,0.81398332]
[1750422915458,0.00013879,106080.0,106070.0,1.15798332]
[1750422917293,0.00013879,106080.0,106070.0,0.83497685]
[1750422917532,0.00013879,106080.0,106070.0,1.16198332]
[1750422918661,0.00013879,106080.0,106070.0,1.06780547]
[1750422918896,0.00013879,106080.0,106070.0,1.14313589]
[1750422919479,0.00013879,106080.0,106070.0,0.82012942]
[1750422920713,0.00013879,106080.0,106070.0,1.06780547]
[1750422926562,0.00013879,106080.0,106070.0,1.16198332]
[1750422932225,5e-05,106090.0,106080.0,0.35454085]
[1750422932423,5e-05,106090.0,106080.0,1.24718353]
[1750422932596,5e-05,106090.0,106080.0,1.17184266]
[1750422932795,5e-05,106090.0,106080.0,1.61653608]
[1750422935053,5e-05,106090.0,106080.0,1.29492843]
[1750422935265,5e-05,106090.0,106080.0,1.29692843]
[1750422935678,5e-05,106090.0,106080.0,1.29392843]
[1750422935922,5e-05,106090.0,106080.0,0.97132104]
[1750422936126,5e-05,106090.0,106080.0,1.29792843]
[1750422936329,5e-05,106090.0,106080.0,1.34792843]
[1750422938031,5e-05,106090.0,106080.0,1.67053582]
[1750422938918,5e-05,106090.0,106080.0,1.82053582]
[1750422939144,5e-05,106100.0,106090.0,0.97534422]
[1750422939379,5e-05,106100.0,106090.0,1.14588233]
[1750422939642,5e-05,106100.0,106090.0,1.07062315]
[1750422939868,5e-05,106100.0,106090.0,1.164801]
[1750422940091,5e-05,106110.0,106100.0,0.73462378]
[1750422940333,0.00013877,106110.0,106100.0,0.90512547]
[1750422940556,0.00013877,106110.0,106100.0,0.82990271]
[1750422941246,0.00013877,106110.0,106100.0,0.85820471]
[1750422941755,0.00013877,106110.0,106100.0,1.27342096]
[1750422942450,0.00013877,106110.0,106100.0,1.30193608]
[1750422943125,0.00013877,106110.0,106100.0,1.30293608]
[1750422943621,0.00013877,106110.0,106100.0,1.50293608]
[1750422943861,0.00013877,106110.0,106100.0,1.51219342]
[1750422944759,0.00013877,106110.0,106100.0,1.80849342]
[1750422946103,5e-05,106120.0,106110.0,0.55390335]
[1750422946316,5e-05,106120.0,106110.0,0.64918228]
[1750422947422,0.00105,106120.0,106110.0,0.64918228]
[1750422947642,0.00105,106120.0,106110.0,0.63464143]
[1750422947865,0.00105,106120.0,106110.0,0.67924143]
[1750422948806,0.00305,106120.0,106110.0,0.67924143]
[1750422949029,0.00305,106120.0,106110.0,0.67864143]
[1750422949778,0.00305,106120.0,106110.0,0.69318228]
[1750422949999,0.00305,106120.0,106110.0,1.12449853]
[1750422950217,0.00305,106120.0,106110.0,1.17449853]
[1750422950880,0.00205,106120.0,106110.0,0.85189114]
[1750422951345,0.00205,106120.0,106110.0,1.17449853]
[1750422952637,5e-05,106120.0,106110.0,1.17449853]
[1750422952901,5e-05,106120.0,106110.0,1.09269853]
[1750422953125,5e-05,106120.0,106110.0,0.68033404]
[1750422953368,0.03155,106120.0,106110.0,0.68033404]
[1750422954271,0.03155,106120.0,106110.0,0.75555029]
[1750422955430,0.03155,106120.0,106110.0,1.07815768]
[1750422956377,0.01565,106120.0,106110.0,1.07815768]
[1750422956582,5e-05,106120.0,106110.0,1.07815768]
[1750422960409,5e-05,106120.0,106110.0,0.75555029]
[1750422960634,0.03065,106120.0,106110.0,0.75555029]
[1750422963116,0.01515,106120.0,106110.0,0.75555029]
[1750422963342,5e-05,106120.0,106110.0,0.75555029]
[1750422964264,5e-05,106120.0,106110.0,1.07815768]
[1750422964731,5e-05,106120.0,106110.0,0.75555029]
[1750422967377,5e-05,106120.0,106110.0,1.07815768]
[1750422967619,5e-05,106120.0,106110.0,1.09269853]
[1750422967859,5e-05,106120.0,106110.0,0.69487489]
[1750422968827,5e-05,106120.0,106110.0,0.78889521]
[1750422969318,0.03205,106120.0,106110.0,0.78889521]
[1750422969756,0.01585,106120.0,106110.0,0.78889521]
[1750422969982,5e-05,106120.0,106110.0,0.78889521]
[1750422970957,5e-05,106120.0,106110.0,1.11142194]
[1750422973882,5e-05,106120.0,106110.0,0.78889521]
[1750422974066,5e-05,106120.0,106110.0,1.11142194]
[1750422974493,5e-05,106120.0,106110.0,1.09688109]
[1750422974714,0.01525,106120.0,106110.0,1.09688109]
[1750422974955,0.03155,106120.0,106110.0,1.09688109]
[1750422975172,0.03155,106120.0,106110.0,1.06858109]
[1750422975824,5e-05,106120.0,106110.0,0.74605436]
[1750422976037,5e-05,106120.0,106110.0,1.06858109]
[1750422976479,5e-05,106120.0,106110.0,0.74605436]
[1750422976694,5e-05,106120.0,106110.0,1.06858109]
[1750422981247,5e-05,106120.0,106110.0,0.74605436]
[1750422981697,0.01615,106120.0,106110.0,0.40605436]
[1750422981956,0.69644871,106120.0,106110.0,0.38741258]
[1750422982148,0.71529484,106120.0,106110.0,0.35915503]
[1750422982368,0.71529484,106120.0,106110.0,0.37800223]
[1750422982600,0.71529475,106120.0,106110.0,0.37800223]
[1750422982810,0.70587164,106120.0,106110.0,0.37800223]
[1750422983036,0.39291432,106120.0,106110.0,0.37800223]
[1750422983538,0.39291432,106120.0,106110.0,0.32145777]
[1750422983741,0.39291432,106120.0,106110.0,0.37800223]
[1750422983958,0.39291432,106120.0,106110.0,0.32145777]
[1750422985727,0.60012807,106120.0,106110.0,0.31203421]
[1750422985983,0.58128282,106120.0,106110.0,0.20733191]
[1750422987078,0.58128282,106120.0,106110.0,0.21675591]
[1750422987561,0.58128282,106120.0,106110.0,0.22617964]
[1750422987787,0.58128282,106120.0,106110.0,0.23560328]
[1750422988333,0.58128282,106120.0,106110.0,0.21675591]
[1750422988544,0.58128282,106120.0,106110.0,0.23560364]
[1750422988753,0.05129725,106120.0,106110.0,0.23560302]
[1750422988968,0.37397028,106120.0,106110.0,0.23560302]
[1750422989174,0.38339313,106120.0,106110.0,0.23560302]
[1750422989374,0.39281606,106120.0,106110.0,0.23560302]
[1750422990153,0.40223917,106120.0,106110.0,0.23560302]
[1750422990368,0.39281606,106120.0,106110.0,0.23560302]
[1750422991844,0.40223908,106120.0,106110.0,0.23560302]
[1750422992060,0.06027147,106110.0,106100.0,0.21677545]
[1750422992294,0.70561744,106110.0,106100.0,0.20735092]
[1750422992514,0.70561744,106110.0,106100.0,0.21677545]
[1750422992734,0.90352517,106110.0,106100.0,0.21677545]
[1750422992975,0.37352041,106110.0,106100.0,0.22619989]
[1750422993183,0.35467303,106110.0,106100.0,0.22619989]
[1750422997270,0.032,106110.0,106100.0,0.22619989]
[1750422997526,0.35467303,106110.0,106100.0,0.22619989]
[1750423004870,0.3547123,106110.0,106100.0,0.22619989]
[1750423011638,0.36413568,106110.0,106100.0,0.28274435]
[1750423011864,0.36413577,106110.0,106100.0,0.28274435]
[1750423012083,0.36413568,106110.0,106100.0,0.28274435]
[1750423012303,0.032,106110.0,106100.0,0.28274435]
[1750423012517,0.36413577,106110.0,106100.0,0.28274435]
[1750423013067,0.36413568,106110.0,106100.0,0.28274435]
[1750423014823,0.37355932,106110.0,106100.0,0.28274435]
[1750423015635,0.38298314,106110.0,106100.0,0.28274435]
[1750423015849,0.36413568,106110.0,106100.0,0.28274435]
[1750423016403,0.37355924,106110.0,106100.0,0.28274435]
[1750423017368,0.38298288,106110.0,106100.0,0.28274435]
[1750423018332,0.70569518,106110.0,106100.0,0.28274435]
[1750423018534,0.715119,106110.0,106100.0,0.28274435]
[1750423018750,0.70569518,106110.0,106100.0,0.28274435]
[1750423018957,0.69627154,106110.0,106100.0,0.28274435]
[1750423019374,0.37355924,106110.0,106100.0,0.28274435]
[1750423019801,0.36413568,106110.0,106100.0,0.28274435]
[1750423020019,0.3547123,106110.0,106100.0,0.28274435]
[1750423020236,0.36413586,106110.0,106100.0,0.28274435]
[1750423021274,0.3547123,106110.0,106100.0,0.28274435]
[1750423021480,0.36413586,106110.0,106100.0,0.28274435]
[1750423021694,0.36413577,106110.0,106100.0,0.28274435]
[1750423022774,0.37355941,106110.0,106100.0,0.28274435]
[1750423023844,0.36413577,106110.0,106100.0,0.28274435]
[1750423024303,0.04142347,106110.0,106100.0,0.29283702]
[1750423024564,0.04107258,106120.0,106110.0,0.21675511]
[1750423024783,0.3227623,106120.0,106110.0,0.21675511]
[1750423025004,5e-05,106120.0,106110.0,0.27329957]
[1750423025226,0.3227623,106120.0,106110.0,0.28989957]
[1750423025445,0.3227623,106120.0,106110.0,0.30509957]
[1750423025642,5e-05,106120.0,106110.0,0.4003785]
[1750423025885,0.3227623,106120.0,106110.0,0.4003785]
[1750423026968,5e-05,106120.0,106110.0,0.4003785]
[1750423027186,0.3226295,106120.0,106110.0,0.4003785]
[1750423027622,0.3256295,106120.0,106110.0,0.4003785]
[1750423027867,0.00305,106120.0,106110.0,0.40955989]
[1750423028516,0.3256295,106120.0,106110.0,0.3685785]
[1750423030873,0.00305,106120.0,106110.0,0.3685785]
[1750423031107,0.3256295,106120.0,106110.0,0.3685785]
[1750423044678,0.00305,106120.0,106110.0,0.3685785]
[1750423044931,0.3256295,106120.0,106110.0,0.4006785]
[1750423045148,0.3256295,106120.0,106110.0,0.723258]
[1750423045149,0.00305,106120.0,106110.0,0.723258]
[1750423045401,0.00305,106120.0,106110.0,0.74209208]
[1750423046478,0.00305,106120.0,106110.0,0.41951258]
[1750423046695,0.00305,106120.0,106110.0,0.74209208]
[1750423046914,0.00305,106120.0,106110.0,0.74202499]
[1750423049000,0.00305,106120.0,106110.0,0.74201477]
[1750423049224,0.00305,106120.0,106110.0,0.77031677]
[1750423052909,5e-05,106120.0,106110.0,0.77031677]
[1750423058359,5e-05,106120.0,106110.0,0.77031066]
[1750423069047,5e-05,106120.0,106110.0,0.77033907]
[1750423071352,5e-05,106120.0,106110.0,0.44781458]
[1750423071561,5e-05,106120.0,106110.0,0.77033907]
[1750423075709,5e-05,106120.0,106110.0,0.69496053]
[1750423075923,5e-05,106120.0,106110.0,0.78898085]
[1750423076834,5e-05,106120.0,106110.0,1.6435217]
[1750423077081,5e-05,106130.0,106120.0,0.60327553]
[1750423077293,5e-05,106130.0,106120.0,1.43778997]
[1750423078485,5e-05,106130.0,106120.0,1.43978997]
[1750423080512,5e-05,106130.0,106120.0,1.44178997]
[1750423081181,5e-05,106130.0,106120.0,1.47008697]
[1750423081402,5e-05,106130.0,106120.0,1.14756248]
[1750423083321,5e-05,106130.0,106120.0,1.05337595]
[1750423083728,5e-05,106130.0,106120.0,1.03747595]
[1750423085510,5e-05,106130.0,106120.0,1.05387595]
[1750423087937,5e-05,106130.0,106120.0,1.0393351]
[1750423091648,5e-05,106130.0,106120.0,1.05387595]
[1750423091881,5e-05,106130.0,106120.0,1.37640044]
[1750423092324,5e-05,106130.0,106120.0,1.05387595]
[1750423093671,5e-05,106130.0,106120.0,1.37640044]
[1750423094148,5e-05,106130.0,106120.0,1.05387595]
[1750423095022,5e-05,106130.0,106120.0,1.37640044]
[1750423095662,5e-05,106130.0,106120.0,1.05387595]
[1750423098660,5e-05,106130.0,106120.0,1.37640044]
[1750423099138,5e-05,106130.0,106120.0,1.47058697]
[1750423099622,5e-05,106130.0,106120.0,1.56984697]
[1750423099846,5e-05,106130.0,106120.0,1.47058697]
[1750423100082,5e-05,106130.0,106120.0,0.82553799]
[1750423100304,5e-05,106130.0,106120.0,1.47058697]
[1750423102125,5e-05,106130.0,106120.0,1.52058697]
[1750423103018,5e-05,106130.0,106120.0,0.87553799]
[1750423103238,5e-05,106130.0,106120.0,1.52058697]
[1750423104544,5e-05,106130.0,106120.0,1.81688697]
[1750423105407,6.28e-06,106130.0,106120.0,1.72270044]
[1750423106476,6.28e-06,106130.0,106120.0,1.85432889]
[1750423107117,6.28e-06,106130.0,106120.0,1.20927991]
[1750423107318,6.28e-06,106130.0,106120.0,1.85432889]
[1750423107748,6.28e-06,106130.0,106120.0,1.20927991]
[1750423107961,6.28e-06,106130.0,106120.0,1.85432889]
[1750423108336,6.28e-06,106130.0,106120.0,1.72270044]
[1750423109469,6.28e-06,106130.0,106120.0,1.4117708]
[1750423109728,0.03240628,106130.0,106120.0,1.07470546]
[1750423110179,0.03240628,106130.0,106120.0,1.09357546]
[1750423110417,0.03240628,106130.0,106120.0,0.77840546]
[1750423111559,0.01600628,106130.0,106120.0,0.77840546]
[1750423111781,0.01600628,106130.0,106120.0,1.10092995]
[1750423112248,0.03190628,106130.0,106120.0,1.10092995]
[1750423112950,0.03190628,106130.0,106120.0,0.77840546]
[1750423116128,6.28e-06,106130.0,106120.0,0.77840546]
[1750423121441,6.28e-06,106130.0,106120.0,1.10089833]
[1750423123794,6.28e-06,106130.0,106120.0,1.13319833]
[1750423124351,6.28e-06,106130.0,106120.0,1.14773918]
[1750423126669,6.28e-06,106130.0,106120.0,1.19773918]
[1750423134642,5e-05,106140.0,106130.0,0.74841426]
[1750423134858,5e-05,106140.0,106130.0,1.2602618]
[1750423135050,5e-05,106140.0,106130.0,1.16602798]
[1750423135517,5e-05,106140.0,106130.0,1.2883716]
[1750423136172,5e-05,106140.0,106130.0,1.19431898]
[1750423136441,5e-05,106140.0,106130.0,1.29843857]
[1750423136655,5e-05,106140.0,106130.0,1.19431898]
[1750423136865,5e-05,106140.0,106130.0,1.20431898]
[1750423137093,5e-05,106140.0,106130.0,0.88198419]
[1750423137306,5e-05,106140.0,106130.0,1.20431898]
[1750423137532,5e-05,106140.0,106130.0,0.97599296]
[1750423137782,5e-05,106140.0,106130.0,1.29832775]
[1750423139108,5e-05,106140.0,106130.0,1.17599296]
[1750423139323,5e-05,106140.0,106130.0,1.74119462]
[1750423139559,5e-05,106140.0,106130.0,1.22815349]
[1750423139807,5e-05,106140.0,106130.0,1.87282307]
[1750423141026,5e-05,106140.0,106130.0,1.87266239]
[1750423142465,5e-05,106140.0,106130.0,2.26266239]
[1750423143219,5e-05,106140.0,106130.0,2.21266239]
[1750423143472,5e-05,106150.0,106140.0,1.00804359]
[1750423143725,0.00019121,106150.0,106140.0,1.10332252]
[1750423143976,0.00019121,106150.0,106140.0,1.23495097]
[1750423144791,2.451e-05,106150.0,106140.0,1.10332252]
[1750423145024,2.451e-05,106150.0,106140.0,1.10632252]
[1750423145720,2.451e-05,106150.0,106140.0,0.42330135]
[1750423145969,2.451e-05,106150.0,106140.0,0.4087605]
[1750423145970,0.03102451,106150.0,106140.0,0.4087605]
[1750423146203,0.03102451,106150.0,106140.0,0.63722722]
[1750423146439,0.03102451,106150.0,106140.0,0.40455085]
[1750423146681,0.03102451,106150.0,106140.0,0.7298053]
[1750423149788,0.03102451,106150.0,106140.0,0.7580963]
[1750423150278,0.03102451,106150.0,106140.0,0.34626377]
[1750423150562,0.03102451,106150.0,106140.0,0.40256112]
[1750423151475,0.03102451,106150.0,106140.0,0.34626377]
[1750423153470,0.03102451,106150.0,106140.0,0.66851822]
[1750423153684,0.03102451,106150.0,106140.0,0.34626377]
[1750423155326,0.03102451,106150.0,106140.0,0.421301]
[1750423157742,0.03102451,106150.0,106140.0,0.34626377]
[1750423160959,0.03102451,106150.0,106140.0,0.421301]
[1750423165155,0.03102451,106150.0,106140.0,0.421301]
[1750423165831,0.03102451,106150.0,106140.0,0.74355545]
[1750423167840,0.03102451,106150.0,106140.0,0.421301]
[1750423169499,0.03102451,106150.0,106140.0,0.74355545]
[1750423169749,2.451e-05,106150.0,106140.0,0.74355545]
[1750423170394,2.451e-05,106150.0,106140.0,0.421301]
[1750423170608,2.451e-05,106150.0,106140.0,0.74355545]
[1750423171323,2.451e-05,106150.0,106140.0,0.76015545]
[1750423171984,2.451e-05,106150.0,106140.0,0.74355545]
[1750423175009,2.451e-05,106150.0,106140.0,0.421301]
[1750423175239,2.451e-05,106150.0,106140.0,0.74355545]
[1750423176656,2.451e-05,106150.0,106140.0,0.66851822]
[1750423176874,2.451e-05,106150.0,106140.0,0.42152554]
[1750423177090,0.03202451,106150.0,106140.0,0.74391934]
[1750423177306,2.451e-05,106150.0,106140.0,0.99105137]
[1750423177518,2.451e-05,106150.0,106140.0,0.66865757]
[1750423177747,2.451e-05,106150.0,106140.0,0.99105137]
[1750423177960,2.451e-05,106150.0,106140.0,1.01654404]
[1750423178224,2.451e-05,106150.0,106140.0,1.00645137]
[1750423179178,2.451e-05,106150.0,106140.0,1.1002391]
[1750423179361,2.451e-05,106150.0,106140.0,1.0848391]
[1750423180536,2.451e-05,106150.0,106140.0,1.1004391]
[1750423182593,2.451e-05,106150.0,106140.0,1.1166391]
[1750423183278,2.451e-05,106150.0,106140.0,1.13117995]
[1750423189037,5e-05,106160.0,106150.0,0.21667343]
[1750423189265,5e-05,106160.0,106150.0,0.70962301]
[1750423189935,5e-05,106160.0,106150.0,0.73791201]
[1750423190177,5e-05,106160.0,106150.0,0.66263516]
[1750423190357,5e-05,106160.0,106150.0,0.82717601]
[1750423190622,5e-05,106160.0,106150.0,0.93796374]
[1750423190845,5e-05,106160.0,106150.0,0.96666589]
[1750423191706,5e-05,106160.0,106150.0,0.87287816]
[1750423191953,0.0266,106170.0,106160.0,0.21665302]
[1750423192171,0.0266,106170.0,106160.0,0.38717036]
[1750423192392,0.0266,106170.0,106160.0,0.70956416]
[1750423192850,0.0266,106170.0,106160.0,0.73785316]
[1750423193532,0.0276,106170.0,106160.0,0.73785316]
[1750423193757,0.0276,106170.0,106160.0,0.74794583]
[1750423194001,0.0168,106170.0,106160.0,0.73785316]
[1750423194362,0.0168,106170.0,106160.0,0.7473459]
[1750423194634,0.01684705,106170.0,106160.0,0.7473459]
[1750423194883,0.33924085,106170.0,106160.0,0.4249521]
[1750423195133,0.35484085,106170.0,106160.0,0.4249521]
[1750423196312,0.03244705,106170.0,106160.0,0.4249521]
[1750423204389,0.35484085,106170.0,106160.0,0.3966631]
[1750423204606,0.35484085,106170.0,106160.0,0.32142469]
[1750423205027,0.35484085,106170.0,106160.0,0.37783442]
[1750423205276,0.3642589,106170.0,106160.0,0.37783442]
[1750423205632,0.35484085,106170.0,106160.0,0.37783442]
[1750423206753,0.35484085,106170.0,106160.0,0.36834168]
[1750423206997,0.3642589,106170.0,106160.0,0.36834168]
[1750423207227,0.35484085,106170.0,106160.0,0.36834168]
[1750423212189,0.3642589,106170.0,106160.0,0.36834168]
[1750423212637,0.35484085,106170.0,106160.0,0.36834168]
[1750423212892,0.18839487,106160.0,106150.0,0.26366334]
[1750423213123,0.70534549,106160.0,106150.0,0.26366334]
[1750423213352,0.89374036,106160.0,106150.0,0.21667379]
[1750423213849,0.88432133,106160.0,106150.0,0.20725361]
[1750423214080,0.7053462,106160.0,106150.0,0.22609406]
[1750423214303,0.89374098,106160.0,106150.0,0.23551415]
[1750423214554,0.90316072,106160.0,106150.0,0.23551415]
[1750423214820,0.71476585,106160.0,106150.0,0.23651352]
[1750423215070,0.70534611,106160.0,106150.0,0.23651352]
[1750423215330,0.24895338,106160.0,106150.0,0.21867343]
[1750423215561,0.89374098,106160.0,106150.0,0.21867343]
[1750423216238,0.89374098,106160.0,106150.0,0.20925325]
[1750423217177,0.89374098,106160.0,106150.0,0.21867343]
[1750423218657,0.69592646,106160.0,106150.0,0.21867343]
[1750423218871,0.69592593,106160.0,106150.0,0.23751352]
[1750423219098,0.7053454,106160.0,106150.0,0.23751352]
[1750423219560,0.70534531,106160.0,106150.0,0.23751352]
[1750423221026,0.69592593,106160.0,106150.0,0.25638352]
[1750423221280,0.69592593,106160.0,106150.0,0.23751352]
[1750423221705,0.7053454,106160.0,106150.0,0.23751352]
[1750423221914,0.69592593,106160.0,106150.0,0.23751352]
[1750423222128,0.70534531,106160.0,106150.0,0.23751352]
[1750423222343,0.71476487,106160.0,106150.0,0.23751352]
[1750423223276,0.70534531,106160.0,106150.0,0.23751352]
[1750423223719,0.69592593,106160.0,106150.0,0.23751352]
[1750423224148,0.68650663,106160.0,106150.0,0.23751352]
[1750423224357,0.69592584,106160.0,106150.0,0.23751352]
[1750423224568,0.68650672,106160.0,106150.0,0.23751352]
[1750423224796,0.36411274,106160.0,106150.0,0.23751352]
[1750423225237,0.37353186,106160.0,106150.0,0.23751352]
[1750423226100,0.38295107,106160.0,106150.0,0.23751352]
[1750423226325,0.39237054,106160.0,106150.0,0.23751352]
[1750423226588,0.38295107,106160.0,106150.0,0.23751352]
[1750423226849,0.39237037,106160.0,106150.0,0.23751352]
[1750423227100,0.38295107,106160.0,106150.0,0.23751352]
[1750423227753,0.39237045,106160.0,106150.0,0.23751352]
[1750423228682,0.40179001,106160.0,106150.0,0.23751352]
[1750423229469,0.39237045,106160.0,106150.0,0.23751352]
[1750423230264,0.40179001,106160.0,106150.0,0.23751352]
[1750423230469,0.72418381,106160.0,106150.0,0.23751352]
[1750423230870,0.72418434,106160.0,106150.0,0.23751352]
[1750423231222,0.91257983,106160.0,106150.0,0.21867343]
[1750423231817,0.91257983,106160.0,106150.0,0.22809352]
[1750423232028,0.91257983,106160.0,106150.0,0.23751352]
[1750423233936,0.91257983,106160.0,106150.0,0.21867343]
[1750423234152,0.72418496,106160.0,106150.0,0.21867343]
[1750423234375,0.71476522,106160.0,106150.0,0.22809352]
[1750423234823,0.90316009,106160.0,106150.0,0.22809352]
[1750423235042,0.90316009,106160.0,106150.0,0.21867343]
[1750423235317,0.89374088,106160.0,106150.0,0.21867343]
[1750423235729,0.8843215,106160.0,106150.0,0.20925361]
[1750423236158,0.8843215,106160.0,106150.0,0.21867388]
[1750423236621,0.8843215,106160.0,106150.0,0.22809406]
[1750423241853,0.05113903,106160.0,106150.0,0.23751406]
[1750423242074,0.37353283,106160.0,106150.0,0.23751406]
[1750423242551,0.3546938,106160.0,106150.0,0.29392379]
[1750423242779,0.37353266,106160.0,106150.0,0.29392379]
[1750423243475,0.19784285,106170.0,106160.0,0.20723408]
[1750423243476,4.705e-05,106170.0,106160.0,0.20723408]
[1750423243696,0.06862103,106170.0,106160.0,0.22607258]
[1750423243948,0.39101483,106170.0,106160.0,0.22607258]
[1750423244425,0.38159607,106170.0,106160.0,0.22607258]
[1750423244637,0.36659607,106170.0,106160.0,0.22607258]
[1750423244865,0.3571774,106170.0,106160.0,0.22607258]
[1750423245081,0.35069572,106170.0,106160.0,0.22607258]
[1750423245392,0.35069563,106170.0,106160.0,0.22607258]
[1750423245823,0.35169563,106170.0,106160.0,0.22607258]
[1750423246031,0.00104705,106170.0,106160.0,0.67374531]